fUST/lending_fUST_20241015
["ID","MTS","AMOUNT","RATE_DAILY","PERIOD"]
[340267822,1728960640372,-1713.78189618,0.0002899,4]
[340267823,1728960640384,-8021.88660342,0.0002899,4]
[340267878,1728961832448,-437.24818744,0.00027,30]
[340267892,1728961995619,199.8511335,0.00027,60]
[340267897,1728962895528,15725.52917485,0.0002,2]
[340267898,1728962916509,14423.78406875,0.00020377,2]
[340267899,1728962916545,22107.50689014,0.00020377,2]
[340267900,1728962916696,1860.1597209,0.0002,2]
[340267901,1728962918283,349.5093358,0.0002,2]
[340267902,1728962918979,157.88353587,0.0002,2]
[340267906,1728963028247,-168.6839,0.00025685,2]
[340267930,1728963032507,-250.0,0.00026142,2]
[340267931,1728963032517,-3360.100234,0.00026692,2]
[340267932,1728963032528,-1140.031078,0.00026694,2]
[340267933,1728963032539,-849.3364485,0.00026716,2]
[340267934,1728963032550,-1304.040597,0.00026832,2]
[340267935,1728963032560,-207.14818744,0.000269,2]
[340267936,1728963032570,-62.75181256,0.00027,30]
[340267937,1728963032579,-500.0,0.00027,30]
[340267938,1728963032589,-500.0,0.00027,30]
[340267939,1728963032599,-500.0,0.00027,30]
[340267940,1728963032608,-179.23,0.00027,30]
[340267941,1728963032617,-5225.8359886,0.00027178,2]
[340267942,1728963032627,-3360.100234,0.00027377,2]
[340267943,1728963032636,-151.0,0.00027522,7]
[340267944,1728963032645,-3000.0,0.00027522,2]
[340267945,1728963032654,-1644.9312004,0.00027601,63]
[340267946,1728963032663,-151.0,0.00027742,7]
[340267947,1728963032673,-245.434711,0.00027742,7]
[340267948,1728963032682,-151.0,0.00027742,7]
[340267949,1728963032693,-151.0,0.00027742,7]
[340267950,1728963032704,-171.056712,0.00027742,7]
[340267951,1728963032714,-151.0,0.00027742,7]
[340267952,1728963032723,-8430.9025541,0.00027742,2]
[340267953,1728963032733,-3360.100234,0.00028062,2]
[340267954,1728963032745,-150.0,0.0002895,120]
[340267955,1728963032756,-235.44,0.0002898,10]
[340267956,1728963032765,-196.2,0.0002898,10]
[340267957,1728963032776,-151.0,0.0002898,7]
[340267958,1728963032785,-163.5,0.0002898,10]
[340267959,1728963032796,-500.0,0.00028989,2]
[340267960,1728963032805,-500.0,0.00028989,2]
[340267961,1728963032814,-500.0,0.00028989,2]
[340267962,1728963032823,-500.0,0.00028989,2]
[340267963,1728963032832,-500.0,0.00028989,2]
[340267964,1728963032841,-579.11733269,0.00028989,2]
[340267965,1728963032850,-500.0,0.00028989,2]
[340267966,1728963032861,-500.0,0.00028989,2]
[340267967,1728963032870,-500.0,0.00028989,2]
[340267968,1728963032879,-151.0,0.00028989,7]
[340267969,1728963032889,-151.0,0.00028989,7]
[340267970,1728963032898,-151.0,0.00028989,7]
[340267971,1728963032908,-151.0,0.00028989,7]
[340267972,1728963032917,-151.0,0.0002899,7]
[340267973,1728963032927,-151.0,0.0002899,7]
[340267974,1728963032937,-151.0,0.0002899,7]
[340267975,1728963032946,-151.0,0.0002899,7]
[340267976,1728963032956,-151.0,0.0002899,7]
[340267977,1728963032969,-151.0,0.0002899,7]
[340267978,1728963032979,-3781.74519678,0.0002899,4]
[340267979,1728963032988,-8314.90686247,0.0002899,4]
[340267984,1728963038808,-796.6653411,0.0002899,4]
[340267985,1728963038820,-7969.34409519,0.0002899,4]
[340268001,1728963046696,-16472.41755956,0.0002899,4]
[340268002,1728963151685,-9670.3161,0.00025977,2]
[340268011,1728963548486,-169.092638,0.00025249,2]
[340268012,1728963548513,-1669.2863914,0.00025326,2]
[340268013,1728963548539,-173.030062,0.00025389,2]
[340268014,1728963548564,-782.3207504,0.00025523,2]
[340268015,1728963589102,801.3652306,0.00025544,2]
[340268016,1728963623608,146.9049276,0.00025525,2]
[340268018,1728963635691,167.070113,0.00024935,2]
[340268019,1728963682460,1546.398178,0.00024843,2]
[340268021,1728963709244,769.302335,0.00024843,2]
[340268022,1728963709482,769.302335,0.00024849,2]
[340268023,1728963709719,769.302335,0.00024856,2]
[340268024,1728963709925,769.302335,0.00024862,2]
[340268025,1728963710145,769.302335,0.00024869,2]
[340268026,1728963710381,769.302335,0.00024876,2]
[340268027,1728963710715,769.302335,0.00024882,2]
[340268028,1728963710803,769.302335,0.00024889,2]
[340268029,1728963711017,769.302335,0.00024895,2]
[340268030,1728963711254,769.302335,0.00024902,2]
[340268031,1728963711492,769.302335,0.00024908,2]
[340268032,1728963711703,769.302335,0.00024915,2]
[340268033,1728963712097,769.302335,0.00024921,2]
[340268034,1728963712304,769.302335,0.00024928,2]
[340268035,1728963712538,769.302335,0.00024934,2]
[340268036,1728963712780,769.302335,0.00024941,2]
[340268037,1728963712981,769.302335,0.00024948,2]
[340268038,1728963713233,733.33253129,0.00024954,2]
[340268039,1728963713269,35.96980371,0.00024954,2]
[340268040,1728963713525,769.302335,0.00024961,2]
[340268041,1728963713746,769.302335,0.00024967,2]
[340268043,1728963852042,357.3500113,0.000201,2]
[340268044,1728963853247,191.1389855,0.0002472,2]
[340268045,1728963937048,30840.512462,0.00024753,2]
[340268046,1728963955155,7036.42406749,0.00025,2]
[340268047,1728963955188,2963.57593251,0.00025,2]
[340268057,1728963964025,10000.0,0.00025,2]
[340268059,1728963970916,10000.0,0.00025,2]
[340268060,1728963976100,10000.0,0.00025,2]
[340268061,1728963983348,7036.42406749,0.00025,2]
[340268062,1728963983395,2963.57593251,0.00025,2]
[340268063,1728963989387,10000.0,0.00025,2]
[340268064,1728964017332,2957.4057888,0.00024643,2]
[340268065,1728964025470,1715.948716,0.00024635,2]
[340268066,1728964096244,5000.0,0.00025,2]
[340268067,1728964105989,3000.0,0.00024369,2]
[340268068,1728964159070,14363.06956269,0.00024643,2]
[340268069,1728964159111,10536.93043731,0.00024643,2]
[340268070,1728964196263,166.666666,0.00024603,2]
[340268071,1728964207360,491.08529677,0.00024564,2]
[340268072,1728964213851,2160.87279046,0.00025,2]
[340268112,1728964232768,-177.6530078,0.00025063,2]
[340268113,1728964232778,-122.3469922,0.00025093,2]
[340268114,1728964232790,-2346.1243598,0.00025093,2]
[340268115,1728964232802,-250.0,0.00025093,2]
[340268116,1728964232812,-162.5,0.00025192,2]
[340268117,1728964232821,-213.98095407,0.0002524,2]
[340268118,1728964232831,-2642.2831404,0.00025247,2]
[340268119,1728964232840,-166.666666,0.00025273,2]
[340268120,1728964232850,-300.0,0.00025319,2]
[340268121,1728964232859,-300.0,0.00025319,2]
[340268122,1728964232869,-1715.948716,0.0002532,2]
[340268123,1728964232879,-213.98095406,0.00025392,2]
[340268124,1728964232888,-2092.64204641,0.00025525,2]
[340268125,1728964232898,-466.30426484,0.00025792,2]
[340268126,1728964232907,-166.666666,0.00025944,2]
[340268127,1728964232917,-1715.948716,0.00026005,2]
[340268128,1728964232927,-166.666666,0.00026615,2]
[340268129,1728964232936,-3279.89698068,0.000269,2]
[340268130,1728964232946,-500.0,0.00026999,2]
[340268131,1728964232957,-500.0,0.00026999,2]
[340268132,1728964232968,-500.0,0.00026999,2]
[340268133,1728964232977,-500.0,0.00026999,2]
[340268134,1728964232986,-500.0,0.00026999,2]
[340268135,1728964232996,-413.45155405,0.00026999,2]
[340268136,1728964233007,-500.0,0.00026999,2]
[340268137,1728964233017,-500.0,0.00026999,2]
[340268138,1728964233027,-500.0,0.00026999,2]
[340268139,1728964233037,-500.0,0.00026999,2]
[340268140,1728964233047,-500.0,0.00026999,2]
[340268141,1728964233057,-500.0,0.00026999,2]
[340268142,1728964233068,-644.7268535,0.00026999,2]
[340268143,1728964233078,-500.0,0.00026999,2]
[340268144,1728964233087,-500.0,0.00026999,2]
[340268145,1728964233097,-500.0,0.00026999,2]
[340268146,1728964233106,-500.0,0.00026999,2]
[340268147,1728964233117,-500.0,0.00026999,2]
[340268148,1728964233127,-500.0,0.00026999,2]
[340268149,1728964233137,-500.0,0.00026999,2]
[340268150,1728964233148,-500.0,0.00026999,2]
[340268151,1728964233157,-500.0,0.00026999,2]
[340268152,1728964233167,-500.0,0.00026999,2]
[340268153,1728964233176,-500.0,0.00026999,2]
[340268154,1728964233186,-150.0,0.00026999,2]
[340268155,1728964233196,-153.90478968,0.00026999,2]
[340268156,1728964233206,-150.83865195,0.00026999,2]
[340268157,1728964233215,-175.40684299,0.00027,2]
[340268158,1728964233225,-35000.0,0.00027,2]
[340268159,1728964233235,-151.0,0.00027,7]
[340268160,1728964233245,-151.0,0.00027,7]
[340268161,1728964233255,-151.0,0.00027,7]
[340268162,1728964233266,-151.0,0.00027,7]
[340268163,1728964233275,-151.0,0.00027,7]
[340268164,1728964233285,-151.0,0.00027,7]
[340268165,1728964233295,-151.0,0.00027,7]
[340268166,1728964233305,-199.478103,0.00027,7]
[340268167,1728964233315,-199.478103,0.00027,7]
[340268168,1728964233325,-151.0,0.00027,7]
[340268169,1728964233334,-151.0,0.00027,7]
[340268170,1728964233345,-475.503294,0.00027,7]
[340268171,1728964233356,-475.503294,0.00027,7]
[340268172,1728964233365,-151.0,0.00027,7]
[340268173,1728964233375,-151.0,0.00027,7]
[340268174,1728964233386,-151.0,0.00027,7]
[340268175,1728964233395,-151.0,0.00027,7]
[340268176,1728964233405,-151.0,0.00027,7]
[340268177,1728964233414,-151.0,0.00027,7]
[340268178,1728964233424,-151.0,0.00027,7]
[340268179,1728964233434,-151.0,0.00027,7]
[340268180,1728964233443,-151.0,0.00027,7]
[340268181,1728964233453,-465.06521324,0.00027082,2]
[340268182,1728964233462,-166.666666,0.00027285,2]
[340268183,1728964233472,-166.666666,0.00027956,2]
[340268184,1728964233482,-381.09177822,0.00028311,5]
[340268185,1728964233492,-150.0,0.00028369,2]
[340268186,1728964233501,-505.036715,0.000285,5]
[340268187,1728964233514,-218.01630266,0.00028637,2]
[340268188,1728964233527,-151.0,0.00028736,7]
[340268189,1728964233536,-154.606208,0.00028736,7]
[340268190,1728964233547,-151.0,0.00028736,7]
[340268191,1728964233557,-500.59117061,0.00028778,2]
[340268192,1728964233567,-151.0,0.00028963,7]
[340268193,1728964233577,-151.0,0.00028963,7]
[340268194,1728964233585,-151.0,0.00028967,7]
[340268195,1728964233595,-151.0,0.00028967,7]
[340268196,1728964233603,-297.692055,0.00028967,7]
[340268197,1728964233612,-151.0,0.00028967,7]
[340268198,1728964233623,-7487.83398288,0.00028967,4]
[340268199,1728964233632,-565.0,0.0002897,10]
[340268200,1728964233641,-470.83,0.0002897,10]
[340268201,1728964233652,-151.0,0.00028973,7]
[340268202,1728964233662,-151.0,0.00028973,7]
[340268203,1728964233671,-151.0,0.00028973,7]
[340268204,1728964233680,-151.0,0.00028976,7]
[340268205,1728964233692,-151.0,0.00028977,7]
[340268206,1728964233701,-151.0,0.00028977,7]
[340268207,1728964233710,-151.0,0.00028977,7]
[340268208,1728964233721,-151.0,0.00028977,7]
[340268209,1728964233732,-151.0,0.00028977,7]
[340268210,1728964233742,-151.0,0.00028977,7]
[340268211,1728964233752,-199.478103,0.00028977,7]
[340268212,1728964233762,-199.478103,0.00028977,7]
[340268213,1728964233773,-151.0,0.00028977,7]
[340268214,1728964233783,-151.0,0.00028977,7]
[340268215,1728964233794,-475.503294,0.00028977,7]
[340268216,1728964233803,-475.503294,0.00028977,7]
[340268217,1728964233813,-151.0,0.00028977,7]
[340268218,1728964233823,-151.0,0.00028977,7]
[340268219,1728964233832,-151.0,0.00028977,7]
[340268220,1728964233842,-151.0,0.00028977,7]
[340268221,1728964233851,-178.051685,0.00028977,7]
[340268222,1728964233860,-151.0,0.0002898,7]
[340268223,1728964233870,-151.0,0.0002898,7]
[340268224,1728964233880,-151.0,0.0002898,7]
[340268225,1728964233890,-151.0,0.0002898,7]
[340268226,1728964233900,-151.0,0.0002898,7]
[340268227,1728964233910,-199.478103,0.0002898,7]
[340268228,1728964233920,-199.478103,0.0002898,7]
[340268229,1728964233929,-151.0,0.0002898,7]
[340268230,1728964233939,-151.0,0.0002898,7]
[340268231,1728964233949,-475.503294,0.0002898,7]
[340268232,1728964233958,-475.503294,0.0002898,7]
[340268233,1728964233970,-151.0,0.0002898,7]
[340268234,1728964233981,-256.862865,0.0002898,7]
[340268235,1728964233991,-151.0,0.0002898,7]
[340268236,1728964234001,-151.0,0.0002898,7]
[340268237,1728964234011,-151.0,0.0002898,7]
[340268238,1728964234021,-151.0,0.0002898,7]
[340268239,1728964234032,-151.0,0.0002898,7]
[340268240,1728964234043,-26207.4189401,0.0002898,4]
[340268241,1728964234053,-151.0,0.00028987,7]
[340268242,1728964234063,-153.250794,0.00028987,7]
[340268243,1728964234073,-1211.95738988,0.00028988,2]
[340268244,1728964234085,-156.384944,0.00028988,7]
[340268245,1728964234095,-151.0,0.00028989,7]
[340268246,1728964234104,-151.0,0.00028989,7]
[340268247,1728964234114,-151.0,0.00028989,7]
[340268248,1728964234124,-193.08792079,0.00028989,2]
[340268249,1728964234134,-234.97734464,0.00028989,2]
[340268250,1728964234144,-183.53036597,0.00028989,2]
[340268251,1728964234154,-151.0,0.0002899,7]
[340268252,1728964234163,-151.0,0.0002899,7]
[340268253,1728964234173,-220.052366,0.0002899,7]
[340268254,1728964234183,-151.0,0.0002899,7]
[340268255,1728964234194,-151.0,0.0002899,7]
[340268256,1728964234205,-151.0,0.0002899,7]
[340268257,1728964234214,-151.0,0.0002899,7]
[340268258,1728964234225,-151.0,0.0002899,7]
[340268259,1728964234235,-151.0,0.0002899,7]
[340268260,1728964234245,-151.0,0.0002899,7]
[340268261,1728964234255,-151.0,0.0002899,7]
[340268262,1728964234266,-151.0,0.0002899,7]
[340268263,1728964234275,-1000.0,0.0002899,28]
[340268264,1728964234285,-1000.0,0.0002899,28]
[340268265,1728964234295,-1000.0,0.0002899,28]
[340268266,1728964234309,-1000.0,0.0002899,28]
[340268267,1728964234318,-1000.0,0.0002899,28]
[340268268,1728964234328,-1000.0,0.0002899,28]
[340268269,1728964234338,-1000.0,0.0002899,28]
[340268270,1728964234349,-1000.0,0.0002899,28]
[340268271,1728964234358,-1000.0,0.0002899,28]
[340268272,1728964234368,-1000.0,0.0002899,28]
[340268273,1728964234379,-1000.0,0.0002899,28]
[340268274,1728964234390,-1000.0,0.0002899,28]
[340268275,1728964234401,-151.0,0.0002899,7]
[340268276,1728964234411,-1000.0,0.0002899,28]
[340268277,1728964234423,-151.0,0.0002899,7]
[340268278,1728964234433,-1000.0,0.0002899,28]
[340268279,1728964234444,-151.0,0.0002899,7]
[340268280,1728964234453,-1000.0,0.0002899,28]
[340268281,1728964234463,-1000.0,0.0002899,28]
[340268282,1728964234473,-1000.0,0.0002899,28]
[340268283,1728964234483,-1000.0,0.0002899,28]
[340268284,1728964234492,-1000.0,0.0002899,28]
[340268285,1728964234502,-1000.0,0.0002899,28]
[340268286,1728964234512,-1000.0,0.0002899,28]
[340268287,1728964234522,-268.472744,0.0002899,7]
[340268288,1728964234533,-1000.0,0.0002899,28]
[340268289,1728964234543,-1000.0,0.0002899,28]
[340268290,1728964234552,-1000.0,0.0002899,28]
[340268291,1728964234562,-1000.0,0.0002899,28]
[340268292,1728964234571,-1000.0,0.0002899,28]
[340268293,1728964234580,-1000.0,0.0002899,28]
[340268294,1728964234590,-1000.0,0.0002899,28]
[340268295,1728964234600,-1000.0,0.0002899,28]
[340268296,1728964234612,-1000.0,0.0002899,28]
[340268297,1728964234623,-1000.0,0.0002899,28]
[340268298,1728964234719,-1000.0,0.0002899,28]
[340268299,1728964234731,-1000.0,0.0002899,28]
[340268300,1728964234742,-1000.0,0.0002899,28]
[340268301,1728964234753,-1000.0,0.0002899,28]
[340268302,1728964234765,-765.77407858,0.0002899,28]
[340268368,1728964238996,-162.5,0.00025261,2]
[340268369,1728964239006,-162.5,0.0002533,2]
[340268371,1728964239016,-162.5,0.00025399,2]
[340268372,1728964239027,-162.5,0.00025469,2]
[340268373,1728964239037,-162.5,0.00025538,2]
[340268374,1728964239048,-162.5,0.00025607,2]
[340268376,1728964239058,-162.5,0.00025676,2]
[340268377,1728964239068,-162.5,0.00025745,2]
[340268378,1728964239077,-162.5,0.00025814,2]
[340268379,1728964239086,-162.5,0.00025883,2]
[340268380,1728964239096,-162.5,0.00025952,2]
[340268381,1728964239106,-162.5,0.00026021,2]
[340268382,1728964239116,-162.5,0.0002609,2]
[340268383,1728964239126,-162.5,0.00026159,2]
[340268384,1728964239137,-162.5,0.00026229,2]
[340268385,1728964239147,-162.5,0.00026298,2]
[340268386,1728964239156,-162.5,0.00026367,2]
[340268387,1728964239169,-162.5,0.00026436,2]
[340268388,1728964239183,-162.5,0.00026505,2]
[340268389,1728964239192,-392.36,0.0002897,10]
[340268390,1728964239201,-1080.41068029,0.00028988,2]
[340268391,1728964239211,-234.22592142,0.0002899,28]
[340268392,1728964239220,-1000.0,0.0002899,28]
[340268393,1728964239229,-1000.0,0.0002899,28]
[340268394,1728964239239,-1000.0,0.0002899,28]
[340268395,1728964239248,-1000.0,0.0002899,28]
[340268396,1728964239257,-1000.0,0.0002899,28]
[340268397,1728964239266,-1000.0,0.0002899,28]
[340268398,1728964239275,-1000.0,0.0002899,28]
[340268399,1728964239284,-1000.0,0.0002899,28]
[340268400,1728964239293,-1000.0,0.0002899,28]
[340268401,1728964239304,-1000.0,0.0002899,28]
[340268402,1728964239313,-1000.0,0.0002899,28]
[340268403,1728964239322,-1000.0,0.0002899,28]
[340268404,1728964239331,-1000.0,0.0002899,28]
[340268405,1728964239340,-1000.0,0.0002899,28]
[340268406,1728964239350,-1000.0,0.0002899,28]
[340268407,1728964239359,-1000.0,0.0002899,28]
[340268408,1728964239368,-1000.0,0.0002899,28]
[340268409,1728964239378,-1000.0,0.0002899,28]
[340268410,1728964239389,-1000.0,0.0002899,28]
[340268411,1728964239398,-1000.0,0.0002899,28]
[340268412,1728964239407,-1000.0,0.0002899,28]
[340268413,1728964239416,-1000.0,0.0002899,28]
[340268414,1728964239425,-1000.0,0.0002899,28]
[340268415,1728964239436,-1000.0,0.0002899,28]
[340268416,1728964239445,-1000.0,0.0002899,28]
[340268417,1728964239455,-1000.0,0.0002899,28]
[340268418,1728964239465,-1000.0,0.0002899,28]
[340268419,1728964239476,-1000.0,0.0002899,28]
[340268420,1728964239486,-1000.0,0.0002899,28]
[340268421,1728964239496,-1000.0,0.0002899,28]
[340268422,1728964239507,-1000.0,0.0002899,28]
[340268423,1728964239520,-331.76435006,0.0002899,28]
[340268453,1728964244078,-1.72342321,0.00026999,2]
[340268481,1728964295073,5000.0,0.00025,2]
[340268482,1728964310314,882.81605889,0.00025,2]
[340268572,1728965439859,-541.128,0.00025523,2]
[340268573,1728965439874,-60.163599,0.00025523,2]
[340268574,1728965439884,-422.686401,0.00025611,2]
[340268575,1728965439897,-811.549275,0.00025611,2]
[340268576,1728965439907,-233.250725,0.00025644,2]
[340268578,1728965439919,-16.749275,0.00025644,2]
[340268579,1728965439928,-160.381285,0.00025651,2]
[340268580,1728965439941,-255.72144409,0.00025898,2]
[340268581,1728965439951,-25.98799591,0.00026208,2]
[340268587,1728965442991,-302.0,0.00026208,2]
[340268628,1728965445734,-273.30360309,0.00026208,2]
[340268631,1728965445744,-160.381285,0.00026319,2]
[340268633,1728965445754,-332.88595365,0.00026893,2]
[340268725,1728965614500,6001.0,0.00027,60]
[340268726,1728965752472,254.96770931,0.00025,2]
[340268727,1728965803908,150.0,0.000249,5]
[340268728,1728965804444,150.0,0.000239,5]
[340268729,1728965804970,150.0,0.000229,4]
[340268730,1728965805491,150.0,0.000219,3]
[340268731,1728965806477,150.0,0.000209,3]
[340268732,1728965807808,150.0,0.000199,2]
[340268733,1728966072114,201.58956267,0.00024946,2]
[340268734,1728966090663,19405.07147859,0.00024656,2]
[340268735,1728966090712,5494.92852141,0.00024656,2]
[340268757,1728966508754,3127.59310125,0.000134,2]
[340268758,1728966518416,18526.00145784,0.00020377,2]
[340268759,1728966522745,249.33743495,0.00022,2]
[340268772,1728966622895,236.47879918,0.00025,2]
[340268790,1728966631867,-300.0,0.00025043,2]
[340268791,1728966631878,-256.07514106,0.00025043,2]
[340268797,1728966640007,-43.92485894,0.00025043,2]
[340268798,1728966640017,-1139.3857383,0.00025044,2]
[340268799,1728966640029,-569.0492276,0.00025044,2]
[340268803,1728966643211,-8491.6764387,0.00025044,2]
[340268804,1728966643222,-170.431208,0.00025438,2]
[340268805,1728966643233,-150.0,0.000259,6]
[340268806,1728966643242,-268.4056453,0.00025973,2]
[340268807,1728966643253,-1500.0,0.00026073,2]
[340268808,1728966643263,-617.117838,0.00026336,2]
[340268809,1728966643274,-265.496441,0.00026347,2]
[340268810,1728966643284,-160.381285,0.00026362,2]
[340268811,1728966643299,-3326.53510093,0.00026447,2]
[340268813,1728966722288,-300.0,0.00026446,2]
[340268814,1728966722315,-11963.72671707,0.00026447,2]
[340268815,1728966722341,-150.933945,0.000269,7]
[340268816,1728966722366,-150.0,0.000279,7]
[340268817,1728966722392,-175.40684299,0.000289,2]
[340268818,1728966722420,-4983.35849851,0.000289,2]
[340268819,1728966722446,-150.0,0.000289,8]
[340268820,1728966722471,-900.34223357,0.00028988,2]
[340268821,1728966722497,-230.37,0.0002899,3]
[340268822,1728966722523,-691.15,0.0002899,3]
[340268823,1728966722549,-4118.3086906,0.0002899,4]
[340268824,1728966722574,-272.47,0.0002899,10]
[340268825,1728966722600,-227.06,0.0002899,10]
[340268826,1728966722624,-189.22,0.0002899,10]
[340268827,1728966722651,-193.52,0.00028999,2]
[340268828,1728966722676,-193.52,0.00028999,2]
[340268829,1728966722700,-110.61307226,0.00028999,2]
[340268830,1728966723704,-300.0,0.00026446,2]
[340268831,1728966723729,-82.90692774,0.00028999,2]
[340268832,1728966723764,-193.52,0.00028999,2]
[340268833,1728966723789,-193.52,0.00028999,2]
[340268834,1728966723814,-193.52,0.00028999,2]
[340268835,1728966723840,-500.0,0.00028999,2]
[340268836,1728966723867,-500.0,0.00028999,2]
[340268837,1728966723895,-500.0,0.00028999,2]
[340268838,1728966723922,-154.47491544,0.00028999,2]
[340268839,1728966723948,-182.74742817,0.00028999,2]
[340268840,1728966723981,-500.0,0.00028999,2]
[340268841,1728966724015,-164.48414125,0.00028999,2]
[340268842,1728966724042,-500.0,0.00028999,2]
[340268843,1728966724067,-500.0,0.00028999,2]
[340268844,1728966724094,-500.0,0.00028999,2]
[340268845,1728966724119,-20034.8265874,0.00029,30]
[340268846,1728966725197,-414.0,0.00028607,2]
[340268847,1728966725224,-24586.0,0.00029,30]
[340268848,1728966726281,-25000.0,0.00029,30]
[340268849,1728966756069,5000.0,0.00025,2]
[340268850,1728966761385,-34585.9014181,0.00029,30]
[340268851,1728966761415,-2059.1543453,0.0002999,4]
[340268852,1728966761444,-1354.9442366,0.0003,7]
[340268853,1728966772922,1652.39266777,0.00025,2]
[340268885,1728967832033,-186.2714338,0.00026066,2]
[340268886,1728967832043,-205.98504954,0.00026346,2]
[340268887,1728967832053,-98.19623688,0.00026978,2]
[340268888,1728967832093,-70.08421712,0.00026978,2]
[340268889,1728967832103,-300.0,0.00027359,2]
[340268890,1728967832115,-9137.79010428,0.0002736,2]
[340268901,1728967838203,-1585.33183703,0.0002736,2]
[340268902,1728967838369,-3484.78714352,0.0002736,2]
[340268926,1728967840095,-10692.09091517,0.0002736,2]
[340268927,1728967840107,-3000.0,0.00027386,2]
[340268928,1728967840117,-308.558919,0.0002753,2]
[340268929,1728967840128,-160.714285,0.00027891,2]
[340268930,1728967840137,-160.714285,0.00028003,2]
[340268931,1728967840147,-7216.27642762,0.00028012,2]
[340268932,1728967840156,-175.406843,0.00028012,2]
[340268933,1728967840165,-160.714285,0.00028115,2]
[340268934,1728967840174,-160.714285,0.00028227,2]
[340268935,1728967840184,-160.714285,0.00028339,2]
[340268936,1728967840194,-7216.27642762,0.00028347,2]
[340268937,1728967840203,-160.714285,0.00028451,2]
[340268938,1728967840212,-160.714285,0.00028562,2]
[340268939,1728967840221,-3105.78454043,0.0002866,2]
[340268940,1728967840233,-671.77936835,0.0002866,2]
[340268943,1728967843724,-3438.71251884,0.0002866,2]
[340268944,1728967843735,-160.714285,0.00028674,2]
[340268945,1728967843746,-160.714285,0.00028786,2]
[340268946,1728967843757,-160.714285,0.00028898,2]
[340268947,1728967843768,-193.75365805,0.000289,2]
[340268948,1728967843779,-750.28519465,0.00028998,2]
[340268949,1728967843790,-107.85473405,0.0002901,2]
[340268953,1728967846313,-52.85955095,0.0002901,2]
[340268954,1728967846326,-160.714285,0.00029121,2]
[340268955,1728967846336,-160.714285,0.00029233,2]
[340268956,1728967846348,-160.714285,0.00029345,2]
[340268957,1728967846365,-27.97815118,0.00029567,2]
[340268958,1728967846379,-222.02184882,0.00029567,2]
[340268959,1728967846389,-302.66710251,0.0002985,2]
[340268960,1728967846400,-1.39177742,0.0003,7]
[340268961,1728967846413,-1364.83551915,0.0003,7]
[340268968,1728968403835,500.0,0.0001,2]
[340268969,1728968404228,500.0,0.0001,2]
[340268970,1728968404623,500.0,0.0001,2]
[340268971,1728968405020,160.0746005,0.0001,2]
[340268975,1728968650231,163.0,0.00024,2]
[340268976,1728968650599,163.0,0.00024424,2]
[340268977,1728968750516,190.0,0.00025,2]
[340268978,1728968750805,190.0,0.00024932,2]
[340268980,1728968849511,206.0,0.00025,2]
[340268981,1728968849879,206.0,0.00024932,2]
[340268987,1728968950699,155.0,0.00025,2]
[340268988,1728968951051,155.0,0.00024932,2]
[340269027,1728969032212,-500.0,0.00025204,2]
[340269029,1728969032222,-906.52691927,0.00025878,2]
[340269031,1728969032231,-155.0,0.0002589,2]
[340269033,1728969032241,-156.0,0.00027185,2]